Workbook

Sheet DtAr
D4: Против НАЕЗДНИКОВ | E4: Пехотинцы
D5: Отряды | E5: сила | F5: здоров | G5: лид,маст,прев | I5: сила прот. | J5: сила бон. | K5: всего сила | L5: здор.бон. | M5: всего здор. | N5: вид войск
D6: Ст1 | E6: Ст2 | F6: Ст3 | G6: Ст4 | H6: Ст5 | I6: Ст6 | J6: Ст7 | K6: Ст8 | L6: Ст9 | M6: Ст10 | N6: Ст11
B7: 1 | D7: не выбрано | E7: сила база | F7: здоров | G7: л, м, п | H7: значение | I7: наездн. | J7: сила бон. | K7: сила | L7: здор.бон. | M7: здоровье | N7: вид
B8: 2 | D8: копейщик 4 | E8: 290 | F8: 870 | G8: л | H8: 1 | I8: 132 | J8: =Расч!$AS$24 -> 0 | K8: =$E8+$E8*($I8+$J8)% -> 672.8 | L8: =Расч!$AR$24 -> 0 | M8: =$F8+$F8*$L8% -> 870 | N8: гвардеец
B9: 3 | D9: мечник 4 | E9: 290 | F9: 870 | G9: л | H9: 1 | I9: 66 | J9: =Расч!$AS$25 -> 0 | K9: 481.4 | L9: =Расч!$AR$25 -> 0 | M9: 870 | N9: специалист
B10: 4 | D10: копейщик 3 | E10: 160 | F10: 480 | G10: л | H10: 1 | I10: 88 | J10: =Расч!$AS$24 -> 0 | K10: 300.8 | L10: =Расч!$AR$24 -> 0 | M10: 480 | N10: гвардеец
B11: 5 | D11: мечник 3 | E11: 160 | F11: 480 | G11: л | H11: 1 | I11: 44 | J11: =Расч!$AS$25 -> 0 | K11: 230.4 | L11: =Расч!$AR$25 -> 0 | M11: 480 | N11: специалист
B12: 6 | D12: копейщик 2 | E12: 90 | F12: 270 | G12: л | H12: 1 | I12: 59 | J12: =Расч!$AS$24 -> 0 | K12: 143.1 | L12: =Расч!$AR$24 -> 0 | M12: 270 | N12: гвардеец | P12: Против НАЕЗДНИКОВ
B13: 7 | D13: мечник 2 | E13: 90 | F13: 270 | G13: л | H13: 1 | I13: 29 | J13: =Расч!$AS$25 -> 0 | K13: 116.1 | L13: =Расч!$AR$25 -> 0 | M13: 270 | N13: специалист | P13: Пехотинцы
B14: 8 | D14: копейщик 1 | E14: 50 | F14: 150 | G14: л | H14: 1 | I14: 39 | J14: =Расч!$AS$24 -> 0 | K14: 69.5 | L14: =Расч!$AR$24 -> 0 | M14: 150 | N14: гвардеец
B15: 9 | D15: мечник 1 | E15: 50 | F15: 150 | G15: л | H15: 1 | I15: 20 | J15: =Расч!$AS$25 -> 0 | K15: 60 | L15: =Расч!$AR$25 -> 0 | M15: 150 | N15: специалист | Q15: Пехотинцы
B16: 10 | Q16: Другие_и_наёмники_1
B17: 11 | D17: Против НАЕЗДНИКОВ | E17: Другие_и_наёмники_1
B18: 12 | D18: не выбрано | E18: сила | F18: здоров | G18: л, м, п | H18: значение | I18: наездн. | J18: сила бон. | K18: сила | L18: здор.бон. | M18: здоровье
B19: 13 | D19: грейс** | E19: 5510 | F19: 16530 | G19: м | H19: 5 | J19: =Расч!$AS$41 -> 0 | K19: =$E19+$E19*($I19+$J19)% -> 5510 | L19: =Расч!$AR$41 -> 0 | M19: =$F19+$F19*$L19% -> 16530 | N19: специалист
B20: 14 | D20: рыцарь 6** | E20: 1900 | F20: 5700 | G20: м | H20: 1 | I20: 148 | J20: =Расч!$AS$25 -> 0 | K20: 4712 | L20: =Расч!$AR$25 -> 0 | M20: 5700 | N20: специалист
B21: 15 | D21: стервятник 6 | E21: 940 | F21: 2820 | G21: л | H21: 1 | I21: 296 | J21: =Расч!$AS$34 -> 0 | K21: 3722.4 | L21: =Расч!$AR$34 -> 0 | M21: 2820 | N21: специалист
B22: 16 | D22: охот.на эпич.мон 6** | E22: 2030 | F22: 6090 | G22: м | H22: 1 | J22: =Расч!$AS$40 -> 0 | K22: 2030 | L22: =Расч!$AR$40 -> 0 | M22: 6090 | N22: охотник
B23: 17 | D23: стервятник 5 | E23: 520 | F23: 1560 | G23: л | H23: 1 | I23: 197 | J23: =Расч!$AS$34 -> 0 | K23: 1544.4 | L23: =Расч!$AR$34 -> 0 | M23: 1560 | N23: специалист
B24: 18
B25: 19 | D25: грейс** | E25: 5510 | F25: 16530 | G25: м | H25: 5 | J25: =Расч!$AS$41 -> 0 | K25: =$E25+$E25*($I25+$J25)% -> 5510 | L25: =Расч!$AR$41 -> 0 | M25: =$F25+$F25*$L25% -> 16530 | N25: специалист
B26: 20 | D26: стремительн.стрелок** | E26: 1050 | F26: 3150 | G26: м | H26: 1 | I26: 339 | J26: =Расч!$AS$8 -> 0 | K26: 4609.5 | L26: =Расч!$AR$8 -> 0 | M26: 3150 | N26: гвардеец
B27: 21
B28: 22
B29: 23
B30: 24
B31: 25
B32: 26
B33: 27
B37: 1
B38: 2
B39: 3
B40: 4
B41: 5
B42: 6
B43: 7
B44: 8
B45: 9
B46: 10
B47: 11 | P47: Против НАЕЗДНИКОВ
B48: 12
B49: 13 | P49: Другие_и_наёмники_1
B50: 14
B51: 15
B52: 16
B53: 17
B54: 18
B55: 19
B56: 20
B57: 21
B58: 22
B59: 23
B60: 24
B61: 25
B62: 26
B63: 27
B64: 28
B69: 1
B70: 2
B71: 3
B72: 4
B73: 5
B74: 6
B75: 7
B76: 8
B77: 9
B78: 10
B79: 11
B80: 12 | P80: Против ПЕХОТЫ
B81: 13 | P81: Стрелки_против_пех.
B82: 14
B83: 15 | P83: Меню Выбор: | Q83: Стрелки_против_пех.
B84: 16 | Q84: Другие_и_наёмники_2
B85: 17 | P85: бокс_стр_пр_пехВ | S85: диап: | T85: стр_пр_пехВ
B86: 18
B87: 19 | P87: Стрелки_против_пех. | S87: диап: | T87: DtAr!$D$63:$D$81
B88: 20 | P88: Другие_и_наёмники_2 | S88: диап: | T88: DtAr!$D$86:$D$99
B89: 21
P90: бокс_стр_пр_пех1 | S90: 2 3 4 5
B92: 1
B93: 2
B94: 3
B95: 4
B96: 5
B97: 6
B98: 7
B99: 8
B100: 9
B101: 10
B102: 11
B103: 12
B104: 13
B105: 14
B106: 15
B107: 16
B111: 1
B112: 2 | P112: Против ПЕХОТЫ
B113: 3 | P113: Другие_и_наёмники_2
B114: 4 | P114: диап: | Q114: Другие_и_наёмники_2
B115: 5
B116: 6
B117: 7
B118: 8
B119: 9
B120: 10
B121: 11
B122: 12
B123: 13
B124: 14
B125: 15
B126: 16
B127: 17
B128: 18
B129: 19
B130: 20
B131: 21
B132: 22
B137: 1 | P137: Против СТРЕЛКОВ
B138: 2 | P138: Наездники
B139: 3
B140: 4 | P140: Меню Выбор: | Q140: Наездники
B141: 5 | Q141: Другие_и_наёмники_3
B142: 6 | P142: бокс_наездВ | S142: диап: | T142: наездВ
B143: 7 | P143: Наездники | S143: диап: | T143: DtAr!$D$105:$D$126
B144: 8 | P144: Другие_и_наёмники_3 | S144: диап: | T144: DtAr!$D$131:$D$143
B145: 9
B146: 10 | P146: бокс_наезд1 | S146: 2 3 4 5
B147: 11
B148: 12
B149: 13
B150: 14
B151: 15
B152: 16
B158: 1
B159: 2
B160: 3
B161: 4
B162: 5
B163: 6
B164: 7
B165: 8
B166: 9
B167: 10
B168: 11
B169: 12 | P169: Против СТРЕЛКОВ
B170: 13 | P170: Другие_и_наёмники_3
B171: 14
B172: 15
B173: 16
B174: 17
B175: 18
B176: 19
B177: 20
B178: 21
B181: 1
B182: 2
B183: 3
B184: 4
B185: 5
B186: 6
B187: 7
B188: 8
B189: 9
B190: 10
B191: 11
B192: 12
B193: 13
P197: Против ЛЕТАЮЩИХ
P198: Стрелки_против_лет.
P200: Меню Выбор: | Q200: Стрелки_против_лет.
Q201: Другие_и_наёмники_4
P202: бокс_стр_пр_летВ | S202: диап: | T202: стр_пр_летВ
P203: Стрелки_против_лет. | S203: диап: | T203: DtAr!$D$147:$D$167
P204: Другие_и_наёмники_4 | S204: диап: | T204: DtAr!$D$172:$D$179
P206: бокс_стр_пр_лет1 | S206: 2 3 4 5
P228: Против ЛЕТАЮЩИХ
P229: Другие_и_наёмники_4

Sheet Расч
AN1: Здоровье и сила с учётом отмеченых бонусов считается калькулятором автоматически.
F3: 1 | S3: =D6-D7 ->  | V3: =E6-E7 ->  | X3: =F6-F7 -> 
AF4: Отметьте активные или планируемые для активации бонусы в чек-боксах. В жёлтые поля введите ваши значения. | AN4: Введите бонусы силы и здоровья по типам войск из свойств отрядов в "Журнал" - "События" тестового боя.
D6: 19754 | E6: 9877 | F6: 4938 | AN6: % | AP6: текущие значения | AR6: с учётом бонусов
D7: =SUM(U8:U12,U14:U18,U20:U24,U26:U30) ->  | E7: =SUM(V8:V12,V14:V18,V20:V24,V26:V30) ->  | F7: =SUM(W8:W12,W14:W18,W20:W24,W26:W30) ->  | J7: Против наездников | K7: Тип отрядов: | M7: Пехотинцы | AF7: % | AG7: здоровье | AJ7: сила | AP7: здоровье | AQ7: сила | AR7: здоровье | AS7: сила | AU7: выделенное красным - проверить вид войск и их бонусы
D8: =D6-D7 ->  | E8: =E6-E7 ->  | F8: =F6-F7 ->  | K8: 5 | L8: мечник 4 | O8: =IF($L8="не выбрано","не выбрано ",IF(COUNTIF($L$8:$L$30,$L8)>1,"уже выбрано ",IFERROR($N8*VLOOKUP($L8,БАЗА,8,0),""))) -> 0 | P8: =ROUNDDOWN($N8*$Q8,0) -> 0 | Q8: =IF($L8="не выбрано",0,VLOOKUP($L8,БАЗА,10,0)) -> 870 | R8: =IF(VLOOKUP($L8,БАЗА,4,0)="л",VLOOKUP($L8,БАЗА,5,0),0) -> 1 | S8: =IF(VLOOKUP($L8,БАЗА,4,0)="м",VLOOKUP($L8,БАЗА,5,0),0) -> 0 | T8: =IF(VLOOKUP($L8,БАЗА,4,0)="п",VLOOKUP($L8,БАЗА,5,0),0) -> 0 | U8: =R8*$N8 -> 0 | V8: =S8*$N8 -> 0 | W8: 0 | X8: =$F$3*$N8 -> 0 | Y8: 5 | Z8: =$Y8-$X8 -> 5 | AF8: VIP | AH8: FALSE | AI8: 7 | AJ8: 7 | AN8: Стрелки | AO8: гвардеец | AR8: =$AP8+$AP8*$AG$12% -> 0 | AS8: =$AQ8+$AQ8*$AJ$12% -> 0 | AU8: лучники, арбалетчик, тяжёлый арбалетчик, чистильщик, горец, стремительный стрелок
E9: 0 | F9: 0 | I9: 0 | K9: 4 | L9: копейщик 4 | O9: =IF($L9="не выбрано","не выбрано ",IF(COUNTIF($L$8:$L$30,$L9)>1,"уже выбрано ",IFERROR($N9*VLOOKUP($L9,БАЗА,8,0),""))) -> 0 | P9: =ROUNDDOWN($N9*$Q9,0) -> 0 | Q9: =IF($L9="не выбрано",0,VLOOKUP($L9,БАЗА,10,0)) -> 870 | R9: =IF(VLOOKUP($L9,БАЗА,4,0)="л",VLOOKUP($L9,БАЗА,5,0),0) -> 1 | S9: =IF(VLOOKUP($L9,БАЗА,4,0)="м",VLOOKUP($L9,БАЗА,5,0),0) -> 0 | T9: =IF(VLOOKUP($L9,БАЗА,4,0)="п",VLOOKUP($L9,БАЗА,5,0),0) -> 0 | U9: =R9*$N9 -> 0 | V9: 0 | W9: 0 | X9: =$F$3*$N9 -> 0 | Y9: 61 | Z9: =$Y9-$X9 -> 61 | AF9: Личные | AH9: FALSE | AI9: 25 | AK9: FALSE | AL9: 25 | AO9: специалист | AR9: 0 | AS9: 0 | AU9: элитн.арбалет, легитимист, охотница, громадина
K10: 3 | L10: мечник 3 | O10: =IF($L10="не выбрано","не выбрано ",IF(COUNTIF($L$8:$L$30,$L10)>1,"уже выбрано ",IFERROR($N10*VLOOKUP($L10,БАЗА,8,0),""))) -> 0 | P10: 0 | Q10: =IF($L10="не выбрано",0,VLOOKUP($L10,БАЗА,10,0)) -> 480 | R10: =IF(VLOOKUP($L10,БАЗА,4,0)="л",VLOOKUP($L10,БАЗА,5,0),0) -> 1 | S10: =IF(VLOOKUP($L10,БАЗА,4,0)="м",VLOOKUP($L10,БАЗА,5,0),0) -> 0 | T10: =IF(VLOOKUP($L10,БАЗА,4,0)="п",VLOOKUP($L10,БАЗА,5,0),0) -> 0 | U10: 0 | V10: 0 | W10: 0 | X10: =$F$3*$N10 -> 0 | Y10: 6 | Z10: 6 | AF10: Премиум | AH10: FALSE | AI10: 25 | AK10: FALSE | AL10: 25 | AO10: дракон | AR10: 0 | AS10: 0 | AU10: магический дракон
K11: 2 | L11: мечник 2 | O11: =IF($L11="не выбрано","не выбрано ",IF(COUNTIF($L$8:$L$30,$L11)>1,"уже выбрано ",IFERROR($N11*VLOOKUP($L11,БАЗА,8,0),""))) -> 0 | P11: 0 | Q11: =IF($L11="не выбрано",0,VLOOKUP($L11,БАЗА,10,0)) -> 270 | R11: =IF(VLOOKUP($L11,БАЗА,4,0)="л",VLOOKUP($L11,БАЗА,5,0),0) -> 1 | S11: =IF(VLOOKUP($L11,БАЗА,4,0)="м",VLOOKUP($L11,БАЗА,5,0),0) -> 0 | T11: =IF(VLOOKUP($L11,БАЗА,4,0)="п",VLOOKUP($L11,БАЗА,5,0),0) -> 0 | U11: =R11*$N11 -> 0 | V11: 0 | W11: 0 | X11: =$F$3*$N11 -> 0 | Y11: 469 | Z11: 469 | AF11: Титулы | AH11: FALSE | AK11: FALSE | AO11: элементаль | AR11: 0 | AS11: 0 | AU11: водный элементаль
K12: 1 | L12: мечник 1 | O12: =IF($L12="не выбрано","не выбрано ",IF(COUNTIF($L$8:$L$30,$L12)>1,"уже выбрано ",IFERROR($N12*VLOOKUP($L12,БАЗА,8,0),""))) -> 0 | P12: 0 | Q12: =IF($L12="не выбрано",0,VLOOKUP($L12,БАЗА,10,0)) -> 150 | R12: =IF(VLOOKUP($L12,БАЗА,4,0)="л",VLOOKUP($L12,БАЗА,5,0),0) -> 1 | S12: =IF(VLOOKUP($L12,БАЗА,4,0)="м",VLOOKUP($L12,БАЗА,5,0),0) -> 0 | T12: =IF(VLOOKUP($L12,БАЗА,4,0)="п",VLOOKUP($L12,БАЗА,5,0),0) -> 0 | U12: 0 | V12: 0 | W12: 0 | X12: =$F$3*$N12 -> 0 | Y12: 13099 | Z12: 13099 | AF12: Итого % | AG12: =IF(AH8=TRUE,+AI8,0)+IF(AH9=TRUE,+AI9,0)+IF(AH10=TRUE,+AI10,0)+IF(AH11=TRUE,+AI11,0) -> 0 | AJ12: =IF(AH8=TRUE,+AJ8,0)+IF(AK9=TRUE,+AL9,0)+IF(AK10=TRUE,+AL10,0)+IF(AK11=TRUE,+AL11,0) -> 0 | AO12: гигант | AR12: 0 | AS12: 0 | AU12: колосс разрушитель
E13: 2000 | J13: Против пехоты | K13: Тип отрядов: | M13: Стрелки_против_пех. | AO13: зверь | AR13: 0 | AS13: 0 | AU13: медуза-горгона, трикстер
E14: 8000 | K14: 5 | L14: магический дракон 4 | O14: =IF($L14="не выбрано","не выбрано ",IF(COUNTIF($L$8:$L$30,$L14)>1,"уже выбрано ",IFERROR($N14*VLOOKUP($L14,БАЗА,8,0),""))) ->  | Q14: =IF($L14="не выбрано",0,VLOOKUP($L14,БАЗА,10,0)) ->  | R14: =IF(VLOOKUP($L14,БАЗА,4,0)="л",VLOOKUP($L14,БАЗА,5,0),0) ->  | S14: =IF(VLOOKUP($L14,БАЗА,4,0)="м",VLOOKUP($L14,БАЗА,5,0),0) ->  | T14: =IF(VLOOKUP($L14,БАЗА,4,0)="п",VLOOKUP($L14,БАЗА,5,0),0) ->  | V14: =S14*$N14 ->  | X14: =$F$3*$N14 -> 0 | Y14: 128 | Z14: =$Y14-$X14 -> 128 | AE14: Если у вас на момент тест-боя что-либо из бонусов активированно, то оставьте соответствующие чек-боксы пустыми, т.е. "галку" ставить не нужно. | AO14: нежить | AR14: 0 | AS14: 0 | AU14: вечный канонир
E15: 12000 | K15: 4 | L15: арбалетчик 6** | O15: =IF($L15="не выбрано","не выбрано ",IF(COUNTIF($L$8:$L$30,$L15)>1,"уже выбрано ",IFERROR($N15*VLOOKUP($L15,БАЗА,8,0),""))) ->  | Q15: =IF($L15="не выбрано",0,VLOOKUP($L15,БАЗА,10,0)) ->  | R15: =IF(VLOOKUP($L15,БАЗА,4,0)="л",VLOOKUP($L15,БАЗА,5,0),0) ->  | S15: =IF(VLOOKUP($L15,БАЗА,4,0)="м",VLOOKUP($L15,БАЗА,5,0),0) ->  | T15: =IF(VLOOKUP($L15,БАЗА,4,0)="п",VLOOKUP($L15,БАЗА,5,0),0) ->  | U15: =R15*$N15 ->  | X15: =$F$3*$N15 -> 0 | Y15: 332 | Z15: =$Y15-$X15 -> 332 | AN15: Наездники | AO15: гвардеец | AR15: =$AP15+$AP15*$AG$12% -> 0 | AS15: =$AQ15+$AQ15*$AJ$12% -> 0 | AU15: всадники, колесница, конный рыцарь, сокрушитель, бедуин
E16: 16000 | K16: 3 | L16: охотница 6** | O16: =IF($L16="не выбрано","не выбрано ",IF(COUNTIF($L$8:$L$30,$L16)>1,"уже выбрано ",IFERROR($N16*VLOOKUP($L16,БАЗА,8,0),""))) ->  | Q16: =IF($L16="не выбрано",0,VLOOKUP($L16,БАЗА,10,0)) ->  | R16: =IF(VLOOKUP($L16,БАЗА,4,0)="л",VLOOKUP($L16,БАЗА,5,0),0) ->  | S16: =IF(VLOOKUP($L16,БАЗА,4,0)="м",VLOOKUP($L16,БАЗА,5,0),0) ->  | T16: =IF(VLOOKUP($L16,БАЗА,4,0)="п",VLOOKUP($L16,БАЗА,5,0),0) ->  | X16: =$F$3*$N16 -> 0 | Y16: 291 | Z16: 291 | AO16: специалист | AR16: =$AP16+$AP16*$AG$12% -> 0 | AS16: =$AQ16+$AQ16*$AJ$12% -> 0 | AU16: всадн на льве, белогриф, наездн. на носороге, буканьер
E17: 25000 | K17: 2 | L17: лучник 2 | O17: =IF($L17="не выбрано","не выбрано ",IF(COUNTIF($L$8:$L$30,$L17)>1,"уже выбрано ",IFERROR($N17*VLOOKUP($L17,БАЗА,8,0),""))) ->  | Q17: =IF($L17="не выбрано",0,VLOOKUP($L17,БАЗА,10,0)) ->  | R17: =IF(VLOOKUP($L17,БАЗА,4,0)="л",VLOOKUP($L17,БАЗА,5,0),0) ->  | S17: =IF(VLOOKUP($L17,БАЗА,4,0)="м",VLOOKUP($L17,БАЗА,5,0),0) ->  | T17: =IF(VLOOKUP($L17,БАЗА,4,0)="п",VLOOKUP($L17,БАЗА,5,0),0) ->  | X17: =$F$3*$N17 -> 0 | Y17: 4000 | Z17: 4000 | AO17: дракон | AR17: =$AP17+$AP17*$AG$12% -> 0 | AS17: =$AQ17+$AQ17*$AJ$12% -> 0 | AU17: пустынный покоритель, опустошитель
K18: 1 | L18: лучник 1 | O18: =IF($L18="не выбрано","не выбрано ",IF(COUNTIF($L$8:$L$30,$L18)>1,"уже выбрано ",IFERROR($N18*VLOOKUP($L18,БАЗА,8,0),""))) ->  | Q18: =IF($L18="не выбрано",0,VLOOKUP($L18,БАЗА,10,0)) ->  | R18: =IF(VLOOKUP($L18,БАЗА,4,0)="л",VLOOKUP($L18,БАЗА,5,0),0) ->  | S18: =IF(VLOOKUP($L18,БАЗА,4,0)="м",VLOOKUP($L18,БАЗА,5,0),0) ->  | T18: =IF(VLOOKUP($L18,БАЗА,4,0)="п",VLOOKUP($L18,БАЗА,5,0),0) ->  | X18: =$F$3*$N18 -> 0 | Y18: 8000 | Z18: 8000 | AE18: Без ввода бонусов, а это бонусы от ГГ, капитанов, экипировки, Зала Славы, в расчётах будут приняты только базовые значения силы, здоровья и значения бонуса противовида. | AO18: элементаль | AR18: =$AP18+$AP18*$AG$12% -> 0 | AS18: =$AQ18+$AQ18*$AJ$12% -> 0 | AU18: пылающий кентавр
J19: Против стрелков | K19: Тип отрядов: | M19: Наездники | AO19: гигант | AR19: =$AP19+$AP19*$AG$12% -> 0 | AS19: =$AQ19+$AQ19*$AJ$12% -> 0 | AU19: наездник на тролле
K20: 5 | L20: хранитель** | O20: =IF($L20="не выбрано","не выбрано ",IF(COUNTIF($L$8:$L$30,$L20)>1,"уже выбрано ",IFERROR($N20*VLOOKUP($L20,БАЗА,8,0),""))) ->  | Q20: =IF($L20="не выбрано",0,VLOOKUP($L20,БАЗА,10,0)) ->  | R20: =IF(VLOOKUP($L20,БАЗА,4,0)="л",VLOOKUP($L20,БАЗА,5,0),0) ->  | S20: =IF(VLOOKUP($L20,БАЗА,4,0)="м",VLOOKUP($L20,БАЗА,5,0),0) ->  | T20: =IF(VLOOKUP($L20,БАЗА,4,0)="п",VLOOKUP($L20,БАЗА,5,0),0) ->  | V20: =S20*$N20 ->  | X20: =$F$3*$N20 -> 0 | Y20: 1 | Z20: =$Y20-$X20 -> 1 | AO20: зверь | AR20: =$AP20+$AP20*$AG$12% -> 0 | AS20: =$AQ20+$AQ20*$AJ$12% -> 0 | AU20: боевой кабан, древнее чудовище
K21: 4 | L21: чудище** | O21: =IF($L21="не выбрано","не выбрано ",IF(COUNTIF($L$8:$L$30,$L21)>1,"уже выбрано ",IFERROR($N21*VLOOKUP($L21,БАЗА,8,0),""))) ->  | Q21: =IF($L21="не выбрано",0,VLOOKUP($L21,БАЗА,10,0)) ->  | R21: =IF(VLOOKUP($L21,БАЗА,4,0)="л",VLOOKUP($L21,БАЗА,5,0),0) ->  | S21: =IF(VLOOKUP($L21,БАЗА,4,0)="м",VLOOKUP($L21,БАЗА,5,0),0) ->  | T21: =IF(VLOOKUP($L21,БАЗА,4,0)="п",VLOOKUP($L21,БАЗА,5,0),0) ->  | U21: =R21*$N21 ->  | X21: =$F$3*$N21 -> 0 | Y21: 12 | Z21: =$Y21-$X21 -> 12 | AO21: нежить | AR21: =$AP21+$AP21*$AG$12% -> 0 | AS21: =$AQ21+$AQ21*$AJ$12% -> 0 | AU21: колесница смерти
K22: 3 | L22: буканьер 2** | O22: =IF($L22="не выбрано","не выбрано ",IF(COUNTIF($L$8:$L$30,$L22)>1,"уже выбрано ",IFERROR($N22*VLOOKUP($L22,БАЗА,8,0),""))) ->  | Q22: =IF($L22="не выбрано",0,VLOOKUP($L22,БАЗА,10,0)) ->  | R22: =IF(VLOOKUP($L22,БАЗА,4,0)="л",VLOOKUP($L22,БАЗА,5,0),0) ->  | S22: =IF(VLOOKUP($L22,БАЗА,4,0)="м",VLOOKUP($L22,БАЗА,5,0),0) ->  | T22: =IF(VLOOKUP($L22,БАЗА,4,0)="п",VLOOKUP($L22,БАЗА,5,0),0) ->  | X22: =$F$3*$N22 -> 0 | Y22: 6 | Z22: 6 | AO22: эльфы | AR22: 0 | AS22: 0 | AU22: хранитель
K23: 2 | L23: грейс** | O23: =IF($L23="не выбрано","не выбрано ",IF(COUNTIF($L$8:$L$30,$L23)>1,"уже выбрано ",IFERROR($N23*VLOOKUP($L23,БАЗА,8,0),""))) -> 0 | P23: 0 | Q23: =IF($L23="не выбрано",0,VLOOKUP($L23,БАЗА,10,0)) -> 16530 | R23: =IF(VLOOKUP($L23,БАЗА,4,0)="л",VLOOKUP($L23,БАЗА,5,0),0) -> 0 | S23: =IF(VLOOKUP($L23,БАЗА,4,0)="м",VLOOKUP($L23,БАЗА,5,0),0) -> 5 | T23: =IF(VLOOKUP($L23,БАЗА,4,0)="п",VLOOKUP($L23,БАЗА,5,0),0) -> 0 | U23: 0 | V23: 0 | W23: 0 | X23: =$F$3*$N23 -> 0 | Y23: 167 | Z23: 167 | AO23: варвар | AR23: 0 | AS23: 0 | AU23: всадник на скорпионе
K24: 1 | L24: наезд. на носороге 6** | O24: =IF($L24="не выбрано","не выбрано ",IF(COUNTIF($L$8:$L$30,$L24)>1,"уже выбрано ",IFERROR($N24*VLOOKUP($L24,БАЗА,8,0),""))) ->  | Q24: =IF($L24="не выбрано",0,VLOOKUP($L24,БАЗА,10,0)) ->  | R24: =IF(VLOOKUP($L24,БАЗА,4,0)="л",VLOOKUP($L24,БАЗА,5,0),0) ->  | S24: =IF(VLOOKUP($L24,БАЗА,4,0)="м",VLOOKUP($L24,БАЗА,5,0),0) ->  | T24: =IF(VLOOKUP($L24,БАЗА,4,0)="п",VLOOKUP($L24,БАЗА,5,0),0) ->  | X24: =$F$3*$N24 -> 0 | Y24: 148 | Z24: 148 | AN24: Пехотинцы | AO24: гвардеец | AR24: 0 | AS24: 0 | AU24: копейщики, тяжёлый алебардист, каратель, легионер, ратник
J25: Против летающих | K25: Тип отрядов: | M25: Стрелки_против_лет. | AO25: специалист | AR25: 0 | AS25: 0 | AU25: мечник, тяжёлый рыцарь, дуэлист, дрейк, рыцарь
K26: 5 | L26: легитимист 2 | O26: =IF($L26="не выбрано","не выбрано ",IF(COUNTIF($L$8:$L$30,$L26)>1,"уже выбрано ",IFERROR($N26*VLOOKUP($L26,БАЗА,8,0),""))) ->  | Q26: =IF($L26="не выбрано",0,VLOOKUP($L26,БАЗА,10,0)) ->  | R26: =IF(VLOOKUP($L26,БАЗА,4,0)="л",VLOOKUP($L26,БАЗА,5,0),0) ->  | S26: =IF(VLOOKUP($L26,БАЗА,4,0)="м",VLOOKUP($L26,БАЗА,5,0),0) ->  | T26: =IF(VLOOKUP($L26,БАЗА,4,0)="п",VLOOKUP($L26,БАЗА,5,0),0) ->  | V26: =S26*$N26 ->  | X26: =$F$3*$N26 -> 0 | Y26: 327 | Z26: =$Y26-$X26 -> 327 | AE26: стремительный стрелок 5 | AO26: дракон | AR26: =$AP26+$AP26*$AG$12% -> 0 | AS26: =$AQ26+$AQ26*$AJ$12% -> 0 | AU26: кристаллический дракон,
K27: 4 | L27: элитн.арбалетчик 7 | O27: =IF($L27="не выбрано","не выбрано ",IF(COUNTIF($L$8:$L$30,$L27)>1,"уже выбрано ",IFERROR($N27*VLOOKUP($L27,БАЗА,8,0),""))) ->  | Q27: =IF($L27="не выбрано",0,VLOOKUP($L27,БАЗА,10,0)) ->  | R27: =IF(VLOOKUP($L27,БАЗА,4,0)="л",VLOOKUP($L27,БАЗА,5,0),0) ->  | S27: =IF(VLOOKUP($L27,БАЗА,4,0)="м",VLOOKUP($L27,БАЗА,5,0),0) ->  | T27: =IF(VLOOKUP($L27,БАЗА,4,0)="п",VLOOKUP($L27,БАЗА,5,0),0) ->  | U27: =R27*$N27 ->  | X27: =$F$3*$N27 -> 0 | Y27: 193 | Z27: =$Y27-$X27 -> 193 | AE27: песчаный червь 7 | AO27: элементаль | AR27: 0 | AS27: 0 | AU27: рубиновый голем, повелитель ветра, проклятый дендроид, энт
K28: 3 | L28: лучник 5 | O28: =IF($L28="не выбрано","не выбрано ",IF(COUNTIF($L$8:$L$30,$L28)>1,"уже выбрано ",IFERROR($N28*VLOOKUP($L28,БАЗА,8,0),""))) ->  | Q28: =IF($L28="не выбрано",0,VLOOKUP($L28,БАЗА,10,0)) ->  | R28: =IF(VLOOKUP($L28,БАЗА,4,0)="л",VLOOKUP($L28,БАЗА,5,0),0) ->  | S28: =IF(VLOOKUP($L28,БАЗА,4,0)="м",VLOOKUP($L28,БАЗА,5,0),0) ->  | T28: =IF(VLOOKUP($L28,БАЗА,4,0)="п",VLOOKUP($L28,БАЗА,5,0),0) ->  | U28: =R28*$N28 ->  | X28: =$F$3*$N28 -> 0 | Y28: 120 | Z28: 120 | AO28: гигант | AR28: 0 | AS28: 0 | AU28: архидемон, многорукий страж, двухголовый огр, кракен
K29: 2 | L29: лучник 4 | O29: =IF($L29="не выбрано","не выбрано ",IF(COUNTIF($L$8:$L$30,$L29)>1,"уже выбрано ",IFERROR($N29*VLOOKUP($L29,БАЗА,8,0),""))) ->  | Q29: =IF($L29="не выбрано",0,VLOOKUP($L29,БАЗА,10,0)) ->  | R29: =IF(VLOOKUP($L29,БАЗА,4,0)="л",VLOOKUP($L29,БАЗА,5,0),0) ->  | S29: =IF(VLOOKUP($L29,БАЗА,4,0)="м",VLOOKUP($L29,БАЗА,5,0),0) ->  | T29: =IF(VLOOKUP($L29,БАЗА,4,0)="п",VLOOKUP($L29,БАЗА,5,0),0) ->  | U29: =R29*$N29 ->  | X29: =$F$3*$N29 -> 0 | Y29: 21287 | Z29: 21287 | AO29: зверь | AR29: 0 | AS29: 0 | AU29: повелитель джунглей, чудище, медведь
K30: 1 | L30: лучник 3 | O30: =IF($L30="не выбрано","не выбрано ",IF(COUNTIF($L$8:$L$30,$L30)>1,"уже выбрано ",IFERROR($N30*VLOOKUP($L30,БАЗА,8,0),""))) ->  | Q30: =IF($L30="не выбрано",0,VLOOKUP($L30,БАЗА,10,0)) ->  | R30: =IF(VLOOKUP($L30,БАЗА,4,0)="л",VLOOKUP($L30,БАЗА,5,0),0) ->  | S30: =IF(VLOOKUP($L30,БАЗА,4,0)="м",VLOOKUP($L30,БАЗА,5,0),0) ->  | T30: =IF(VLOOKUP($L30,БАЗА,4,0)="п",VLOOKUP($L30,БАЗА,5,0),0) ->  | U30: =R30*$N30 ->  | X30: =$F$3*$N30 -> 0 | Y30: 5967 | Z30: 5967 | AO30: нежить | AR30: 0 | AS30: 0 | AU30: костяной голем
AO31: демон | AR31: 0 | AS31: 0 | AU31: демоническая саламандра
AN32: Летающие | AO32: гвардеец | AR32: =$AP32+$AP32*$AG$12% -> 0 | AS32: =$AQ32+$AQ32*$AJ$12% -> 0 | AU32: ворон
AO33: гвардеец, зверь | AR33: 0 | AS33: 0 | AU33: боевой грифон, сфинкс, неукрощённый
AO34: специалист | AR34: 0 | AS34: 0 | AU34: стервятник
AO35: специалист,зверь | AR35: 0 | AS35: 0 | AU35: шеду, королевский лев, яго
AO36: дракон | AR36: 0 | AS36: 0 | AU36: изумрудный дракон, чёрный дракон, виверна
AO37: элементаль | AR37: 0 | AS37: 0 | AU37: ледяной Феникс, огненный Феникс, ифрит
AO38: гигант | AR38: 0 | AS38: 0 | AU38: каменная горгулья
AO39: зверь | AR39: 0 | AS39: 0 | AU39: жуткая мнтикора
AN40: Охотник | AO40: гвард,на эпич мон | AR40: =$AP40+$AP40*$AG$12% -> 0 | AS40: =$AQ40+$AQ40*$AJ$12% -> 0 | AU40: охотн. на эпич. монстров, старший охотн. на эпич. монстров
AN41: Разведчик | AO41: специалист | AR41: =$AP41+$AP41*$AG$12% -> 0 | AS41: =$AQ41+$AQ41*$AJ$12% -> 0 | AU41: грейс
U64: диап: | V64: стр_пр_пех
I137: 55
